Cogmind - Beta 13 @@@ ROGUE MODE // 2024.08.02 @ 22:37:02 Player: yam Result: Destroyed by G-50 Soldier with Heavy Laser Performance ------------- Evolutions (5) 2500 Regions Visited (11) 2200 Robots Destroyed (58) 290 Value Destroyed (2309) 2309 Prototype IDs (3) 60 Alien Tech Used (0) 0 Bonus (1720) 1720 TOTAL SCORE: 9079 Bonus ------- Follower Combat Kills 661 Entered Garrisons 200 Used RIF Installer 500 Entered DSFs 500 Friendly Fire -141 Cogmind --------- Core Integrity 0/1000 Matter 22/300 Energy 99/100 System Corruption 10% Temperature Cool (18) Movement Core (50) Location -5/Factory Parts ------- > --- POWER (2) -------- (None) > --- PROPULSION (5) --- (None) > --- UTILITY (6) ------ Enhanced Optical Array Authchip [R/Combat] > --- WEAPON (4) ------- (None) > --- INVENTORY (5) ---- Improved Ion Engine Improved Core Shielding Improved Light Armor Plating Plasma Rifle Phasing Sabre Peak State ------------ > --- POWER ------------ Fusion Compressor Neutrino Core > --- PROPULSION ------- Carbon-fiber Leg Carbon-fiber Leg Carbon-fiber Leg Carbon-fiber Leg Flexi-carbon Leg > --- UTILITY ---------- Improved Cooling System Enhanced Optical Array Improved Light Armor Plating Improved Hardlight Generator Advanced Shield Generator Authchip [R/Combat] > --- WEAPON ----------- Flak Gun Advanced KE Penetrator Bore Cannon Enhanced Gauss Cannon > --- INVENTORY -------- Improved Ion Engine Improved Core Shielding Improved Light Armor Plating Plasma Rifle Phasing Sabre [Rating: 80] Favorites ----------- Power Light Angular Momentum Engine Engine Light Angular Momentum Engine Power Core Neutrino Core Propulsion Carbon-fiber Leg Treads Light Treads Leg Carbon-fiber Leg Wheel Wheel Hover Unit Gravmag Array Flight Unit Nuclear Pulse Thruster Utility Enhanced Optical Array Device Improved Hardlight Generator Storage Small Storage Unit Processor Enhanced Optical Array Hackware Authchip [R/Combat] Protection Improved Light Armor Plating Weapon Advanced KE Penetrator Energy Gun Medium Laser Energy Cannon Phase Cannon Ballistic Gun Advanced KE Penetrator Ballistic Cannon Bore Cannon Launcher Grenade Launcher Piercing Weapon Force Lance Build | -11 -10 -10 -8 -8 -7 -7 -6 -6 -6 -6 -5 ------- Run | Yrd Mat Sub Mat Gar Fac DSF Fac Ext Cet Arc Fac Slots Evolved 10 | . . . 4 . 2 . 2 . . . 2 Power 1 | . . . . . 1 . . . . . . Propulsion 3 | . . . 3 . . . . . . . . Utility 4 | . . . 1 . 1 . 1 . . . 1 Weapon 2 | . . . . . . . 1 . . . 1 Parts Attached 110 | 8 4 4 25 2 . 3 9 23 13 2 17 Power 15 | 1 1 . 2 . . 1 1 2 2 1 4 Engine 12 | 1 1 . 1 . . 1 1 2 2 . 3 Core 3 | . . . 1 . . . . . . 1 1 Reactor . | . . . . . . . . . . . . Propulsion 42 | 2 2 . 15 1 . 1 3 9 6 . 3 Treads 3 | . . . 3 . . . . . . . . Leg 14 | . 2 . . . . . . 6 6 . . Wheel 6 | 2 . . 4 . . . . . . . . Hover 4 | . . . . . . . . 1 . . 3 Flight 15 | . . . 8 1 . 1 3 2 . . . Utility 29 | 3 . 2 5 . . 1 3 7 1 1 6 Device 14 | 1 . . 2 . . . 2 4 . 1 4 Storage 3 | 2 . . . . . . . . . . 1 Processor 4 | . . . 1 . . 1 1 . . . 1 Hackware 1 | . . . . . . . . . 1 . . Protection 7 | . . 2 2 . . . . 3 . . . Artifact . | . . . . . . . . . . . . Weapon 24 | 2 1 2 3 1 . . 2 5 4 . 4 Energy Gun 11 | 2 . 2 1 . . . 2 1 1 . 2 Energy Cannon 1 | . . . . . . . . 1 . . . Ballistic Gun 5 | . . . 2 . . . . 1 2 . . Ballistic Cannon 5 | . . . . 1 . . . 2 1 . 1 Launcher 1 | . 1 . . . . . . . . . . Special Weapon . | . . . . . . . . . . . . Impact Weapon . | . . . . . . . . . . . . Slashing Weapon . | . . . . . . . . . . . . Piercing Weapon 1 | . . . . . . . . . . . 1 Special Melee Weapon . | . . . . . . . . . . . . Unidentified Prototypes 3 | . . . 1 . . . . . 1 . 1 Parts Lost 57 | . 3 3 8 . . 5 . 11 4 . 23 Power 7 | . . 1 1 . . . . 1 1 . 3 Propulsion 19 | . 2 . 3 . . 3 . 3 1 . 7 Utility 14 | . . 1 2 . . 1 . 4 . . 6 Weapon 17 | . 1 1 2 . . 1 . 3 2 . 7 Highest Loss Streak 9 | . 3 3 5 . . 4 . 4 4 . 9 To Critical Strikes . | . . . . . . . . . . . . Average Slot Usage (%) 76 | . 87 81 72 75 . 43 64 66 94 100 72 Engine 7 | . 13 11 6 . . . 6 5 12 7 3 Core 1 | . . . . 9 . 1 . . . 4 5 Leg 16 | . 23 28 3 . . . . 10 28 33 18 Wheel 1 | . 2 . 8 . . . . . . . . Flight 5 | . . . 12 33 . 17 29 8 . . . Device 12 | . 14 . 16 18 . 7 9 12 13 13 10 Storage 2 | . 14 . . . . . . . . . . Processor 5 | . . . . . . 7 11 11 6 6 5 Hackware 1 | . . . . . . . . . 4 6 5 Protection 4 | . . 13 7 . . . . 4 8 6 2 Energy Gun 6 | . 15 15 7 . . . 3 4 5 . 1 Ballistic Gun 4 | . . . 6 9 . . . 2 11 13 5 Ballistic Cannon 2 | . . . . 6 . 7 1 2 1 6 6 Launcher 1 | . 2 12 . . . . . . . . . Naked Turns . | . . . . . . . . . . . . Heaviest Build 65 | 15 16 30 19 14 14 19 17 51 51 54 65 Greatest Support 80 | 26 26 20 40 19 19 19 20 60 80 80 80 Greatest Overweight (x) 6 | . 4 1 6 . . . 1 1 1 . 4 Average Overweight (x) . | . . . . . . . . . . . . Largest Inventory Capacity 8 | 8 8 8 5 5 5 5 5 5 5 5 5 Average Capacity 5 | 7 8 5 5 5 5 5 5 5 5 5 5 Most Carried 8 | 3 7 8 5 5 4 5 5 5 5 5 5 Average Carried 4 | 1 6 4 4 3 4 4 4 3 4 5 5 Final Capacity 8 | 8 8 5 5 5 5 5 5 5 5 5 5 Final Carried 7 | 3 7 4 5 4 4 5 5 5 5 5 5 Class Distribution -------------------- 47% | Mutant 35% | Scavenger-Tank 6% | Scavenger-Mutant 5% | Sprinter 4% | Scavenger-Sprinter Dominant Class ---------------- Mutant | -10/Materials Mutant | -10/Subcaves Scavenger-Mutant | -8/Materials Scavenger-Sprinter | -8/Garrison Scavenger-Sprinter | -7/Factory Mutant | -7/DSF Sprinter | -6/Factory Mutant | -6/Extension Scavenger-Tank | -6/Cetus Scavenger-Tank | -6/Archives Scavenger-Tank | -5/Factory Resources | -11 -10 -10 -8 -8 -7 -7 -6 -6 -6 -6 -5 ----------- Run | Yrd Mat Sub Mat Gar Fac DSF Fac Ext Cet Arc Fac Matter Collected 2168 | 280 40 17 436 . . 96 70 497 328 165 239 Remotely . | . . . . . . . . . . . . Salvage Created 2354 | 119 143 47 478 . . 144 70 551 230 268 304 Parts 133 | 5 12 . 45 . . 14 3 24 7 10 13 Haulers Intercepted 1 | . . . 1 . . . . . . . . Recyclers Shooed 2 | . . . . . . . . 1 . . 1 Parts Field Recycled . | . . . . . . . . . . . . Retrieved Matter . | . . . . . . . . . . . . Parts Self-Destructed . | . . . . . . . . . . . . Prevented . | . . . . . . . . . . . . Kills | -11 -10 -10 -8 -8 -7 -7 -6 -6 -6 -6 -5 ------- Run | Yrd Mat Sub Mat Gar Fac DSF Fac Ext Cet Arc Fac Combat Hostiles Destroyed 44 | . 2 2 13 . . 5 1 7 5 4 5 Melee 1 | . . . 1 . . . . . . . . Guns 23 | . 2 1 12 . . . 1 2 5 . . Cannons 19 | . . . . . . 5 . 5 . 4 5 AOE 1 | . . 1 . . . . . . . . . Classes Destroyed 14 | 2 2 1 5 . . 2 . . . 1 1 Worker 1 | . 1 . . . . . . . . . . Builder 2 | . . . 2 . . . . . . . . Tunneler 3 | 2 1 . . . . . . . . . . Hauler 1 | . . . 1 . . . . . . . . Recycler 2 | 1 . . . . . . . 1 . . . Operator 1 | . . . . . . . . . . 1 . Watcher 3 | . . . 1 . . . . . . . 2 Swarmer 7 | . . . 7 . . . . . . . . Cutter 4 | . . . . . . 4 . . . . . Grunt 14 | . 2 . 3 . . . 1 4 4 . . Sentry 10 | . . . 3 . . . . 3 . 4 . Specialist 1 | . . . . . . 1 . . . . . Programmer 5 | . . . . . . . . . . . 5 Cetus Guard 1 | . . . . . . . . . 1 . . Subdweller 2 | . . 2 . . . . . . . . . Thug 1 | . . . . . . . . 1 . . . Best Kill Streak 7 | 3 3 1 7 . . 3 1 2 2 2 2 Combat Bots Only 7 | . 2 1 7 . . 3 1 2 2 2 1 Max Kills in Single Turn 1 | 1 1 1 1 . . 1 1 1 1 1 1 Gunslinging . | . . . . . . . . . . . . Exploded 1 | . . 1 . . . . . . . . . Melee 1 | . . . 1 . . . . . . . . Uniques/NPCs Destroyed . | . . . . . . . . . . . . Combat | -11 -10 -10 -8 -8 -7 -7 -6 -6 -6 -6 -5 -------- Run | Yrd Mat Sub Mat Gar Fac DSF Fac Ext Cet Arc Fac Hostile Shots Fired 799 | . 34 42 118 2 . 38 2 291 79 23 170 Missed 312 | . 4 14 45 1 . 20 . 140 24 8 56 Damage Taken 7955 | . 373 688 1090 14 . 492 36 1499 919 267 2577 Core 2248 | . 109 63 242 14 . 167 18 484 96 40 1015 Absorbed by Shields 1095 | . . . . . . . . 271 348 90 386 Redirected to Shielding 71 | . . 21 26 . . . . 24 . . . Core Remaining (%) 56 | 100 . 31 . 53 . 76 . . . 24 . Volleys Fired 223 | 6 16 21 58 1 . 10 3 45 28 15 20 Largest 4 | 2 2 1 2 2 . 2 1 3 3 3 4 Hottest 209 | 90 90 60 88 64 . 64 55 161 138 120 209 Shots Fired 397 | 12 24 19 78 2 . 12 3 72 68 41 66 Gun 305 | 12 24 13 78 1 . 1 3 47 67 26 33 Cannon 86 | . . . . 1 . 11 . 25 1 15 33 Launcher 6 | . . 6 . . . . . . . . . Special . | . . . . . . . . . . . . Kinetic 250 | . . . 47 2 . 12 . 48 42 41 58 Thermal 94 | 6 12 13 31 . . . . 6 26 . . Explosive 6 | . . 6 . . . . . . . . . Electromagnetic 47 | 6 12 . . . . . 3 18 . . 8 Robot Hit Streak 14 | 6 4 6 14 . . 4 4 10 9 6 3 Robot Miss Streak 9 | 1 3 2 4 . . 2 . 5 6 4 9 Penetration Max 1 | . . . . . . . . 1 1 . . Secondary Targets 1 | . . . . . . . . . 1 . . Max Gunslinging Chain 1 | . . . . . . . . . 1 . . Shots Hit Robots 256 | 9 12 13 51 . . 7 3 53 47 32 29 Core Hits 176 | 4 9 10 31 . . 7 3 37 40 19 16 Critical Kills 10 | . . . . . . . . 2 2 5 1 Critical Parts Destroyed 11 | . . . . . . . . 2 2 4 3 Critical Strikes 38 | 3 1 . . . . . . 6 8 12 8 Burn 8 | 2 1 . . . . . . 1 4 . . Destroy 25 | . . . . . . . . 5 4 12 4 Blast 4 | . . . . . . . . . . . 4 Corrupt 1 | 1 . . . . . . . . . . . Melee Attacks . | . . . . . . . . . . . . Impact . | . . . . . . . . . . . . Slashing . | . . . . . . . . . . . . Piercing . | . . . . . . . . . . . . Sneak Attacks . | . . . . . . . . . . . . Combat Hostiles . | . . . . . . . . . . . . Follow-up Attacks . | . . . . . . . . . . . . Damage Inflicted 5576 | 114 177 556 792 . . 170 63 977 1129 749 849 Guns 3629 | 114 175 157 784 . . 8 63 449 1084 438 357 Cannons 1505 | . . . . . . 162 . 525 45 311 462 Explosions 395 | . . 395 . . . . . . . . . Melee . | . . . . . . . . . . . . Ramming 47 | . 2 4 8 . . . . 3 . . 30 Kinetic 3601 | . . . 480 . . 170 . 632 811 749 759 Thermal 1049 | 64 99 157 304 . . . . 107 318 . . Explosive 395 | . . 395 . . . . . . . . . Electromagnetic 484 | 50 76 . . . . . 63 235 . . 60 Impact . | . . . . . . . . . . . . Slashing . | . . . . . . . . . . . . Piercing . | . . . . . . . . . . . . Highest Corruption 10 | . 2 2 . . . 4 . . . . 10 Average Corruption 5 | . 2 2 . . . 4 . . . . 7 Corruption Purged . | . . . . . . . . . . . . Corruption Blocked . | . . . . . . . . . . . . Effects 28 | . . 4 . . . 2 . . . . 22 Message Errors 7 | . . 2 . . . 1 . . . . 4 Matter Fused 5 | . . . . . . . . . . . 5 Heat Flow Errors 2 | . . . . . . . . . . . 2 Energy Discharges 2 | . . . . . . . . . . . 2 Parts Rejected 1 | . . . . . . . . . . . 1 Parts Fused 1 | . . . . . . . . . . . 1 Data Loss (minor) 2 | . . 1 . . . . . . . . 1 Data Loss (major) 2 | . . . . . . . . . . . 2 Misfires 2 | . . . . . . 1 . . . . 1 Alerts 1 | . . . . . . . . . . . 1 Misdirections 2 | . . . . . . . . . . . 2 Weapon Failures 1 | . . 1 . . . . . . . . . Overload Shots . | . . . . . . . . . . . . Overflow Damage 16 | . . . . . . . . . . 2 14 Projectiles 9 | . . . . . . . . . . 2 7 Explosions 7 | . . . . . . . . . . . 7 Melee . | . . . . . . . . . . . . Knockbacks 15 | . . . . . . 1 . 12 . 1 1 Impact . | . . . . . . . . . . . . Kinetic 15 | . . . . . . 1 . 12 . 1 1 Secondary . | . . . . . . . . . . . . Self-Inflicted Damage 47 | . . . . . . . . . . . 47 Shots 1 | . . . . . . . . . . . 1 Rammed 7 | . . . 3 . . . . . . . 4 Targets Rammed 16 | . 1 1 4 . . . . 2 . . 8 Kicked 8 | . 1 1 . . . . . 2 . . 4 Crushed 1 | . . . 1 . . . . . . . . Highest Temperature 453 | 80 315 . 453 32 . . 35 384 335 66 161 Average Temperature 105 | 37 199 . 139 16 . . 22 93 103 19 32 Received Heat Transfer 2604 | . 210 66 477 9 . 18 18 854 293 60 599 Effects 13 | . 6 . 6 . . . . 1 . . . Shutdowns 4 | . . . 3 . . . . 1 . . . Energy Bleed 2 | . 1 . 1 . . . . . . . . Interference 4 | . 4 . . . . . . . . . . Matter Decay 1 | . . . 1 . . . . . . . . Short Circuit 1 | . 1 . . . . . . . . . . Damage (minor) 1 | . . . 1 . . . . . . . . Siege Activations . | . . . . . . . . . . . . Robots Corrupted . | . . . . . . . . . . . . Combat Hostiles . | . . . . . . . . . . . . Parts Fried . | . . . . . . . . . . . . Impact Corruptions . | . . . . . . . . . . . . Robots Melted . | . . . . . . . . . . . . Combat Hostiles . | . . . . . . . . . . . . Parts Melted 9 | 4 2 . . . . . . 2 1 . . Heat Transferred 2676 | 333 370 212 521 . . . . 350 890 . . Parts Sabotaged . | . . . . . . . . . . . . Parts Stolen . | . . . . . . . . . . . . Parts Stripped . | . . . . . . . . . . . . Power Chain Reactions . | . . . . . . . . . . . . Alert | -11 -10 -10 -8 -8 -7 -7 -6 -6 -6 -6 -5 ------- Run | Yrd Mat Sub Mat Gar Fac DSF Fac Ext Cet Arc Fac Peak Influence 392 | 15 54 . 392 267 140 213 146 263 195 210 281 Initial 158 | . 9 . . 158 140 98 111 71 53 . 73 Average 116 | 4 23 . 163 204 140 143 122 126 96 163 147 Maximum Alert Level 1 | . . . 1 1 . 1 . 1 . 1 1 Low Security (%) 79 | 100 100 . 70 53 100 92 100 82 100 49 61 Level 1 20 | . . . 29 46 . 8 . 17 . 50 38 Level 2 . | . . . . . . . . . . . . Level 3 . | . . . . . . . . . . . . Level 4 . | . . . . . . . . . . . . Level 5 . | . . . . . . . . . . . . High Security . | . . . . . . . . . . . . Max Security . | . . . . . . . . . . . . Squads Dispatched 16 | . 2 . 4 . . 3 2 . 2 . 3 Investigation 6 | . . . 2 . . . 2 . 2 . . Extermination 3 | . . . . . . . . . . . 3 Reinforcement 7 | . 2 . 2 . . 3 . . . . . Assault . | . . . . . . . . . . . . Garrison . | . . . . . . . . . . . . Intercept . | . . . . . . . . . . . . Searches Triggered . | . . . . . . . . . . . . Construction Impeded 1 | . . . 1 . . . . . . . . Haulers Reinforced . | . . . . . . . . . . . . Active Scanning Responses . | . . . . . . . . . . . . Cargo Convoy Interrupts . | . . . . . . . . . . . . Stealth | -11 -10 -10 -8 -8 -7 -7 -6 -6 -6 -6 -5 --------- Run | Yrd Mat Sub Mat Gar Fac DSF Fac Ext Cet Arc Fac Distress Signals 10 | . 1 . 4 . . . . 3 . . 2 Communications Jammed . | . . . . . . . . . . . . Distress Signals . | . . . . . . . . . . . . Times Spotted 152 | . 9 10 34 2 . 11 2 30 11 5 38 Peak Tracking Total 12 | . 4 4 12 4 . 4 1 7 5 2 11 Tactical Retreats 25 | . 1 . 2 . . 2 . 12 . . 8 Traps | -11 -10 -10 -8 -8 -7 -7 -6 -6 -6 -6 -5 ------- Run | Yrd Mat Sub Mat Gar Fac DSF Fac Ext Cet Arc Fac Traps Triggered 5 | . 1 . 1 . . . 1 1 . . 1 Indirectly . | . . . . . . . . . . . . Trap Hack Attempts . | . . . . . . . . . . . . Triggered . | . . . . . . . . . . . . Disarmed . | . . . . . . . . . . . . Reprogrammed . | . . . . . . . . . . . . Reused . | . . . . . . . . . . . . Traps Extracted . | . . . . . . . . . . . . Installed . | . . . . . . . . . . . . Triggered . | . . . . . . . . . . . . Machines | -11 -10 -10 -8 -8 -7 -7 -6 -6 -6 -6 -5 ---------- Run | Yrd Mat Sub Mat Gar Fac DSF Fac Ext Cet Arc Fac Machines Disabled 16 | . . . . . . 1 . . . 5 10 Max in Single Turn 8 | . . . . . . 1 . . . 2 8 Machines Repaired . | . . . . . . . . . . . . Machines Dismantled . | . . . . . . . . . . . . Machines Sabotaged . | . . . . . . . . . . . . Overloaded Fab Kills . | . . . . . . . . . . . . Hacking | -11 -10 -10 -8 -8 -7 -7 -6 -6 -6 -6 -5 --------- Run | Yrd Mat Sub Mat Gar Fac DSF Fac Ext Cet Arc Fac Machines Accessed 31 | . 2 . 7 3 1 . 2 9 3 1 3 Terminals 28 | . 2 . 6 3 1 . 2 8 3 . 3 Fabricators . | . . . . . . . . . . . . Repair Stations . | . . . . . . . . . . . . Recycling Units 1 | . . . . . . . . 1 . . . Scanalyzers . | . . . . . . . . . . . . Garrison Access 1 | . . . 1 . . . . . . . . Total Hacks 99 | . 6 . 16 5 1 . 4 21 7 25 14 Successful 58 | . 1 . 8 3 1 . 1 10 1 25 8 Failed 41 | . 5 . 8 2 . . 3 11 6 . 6 Catastrophic 9 | . 1 . 1 . . . 1 2 4 . . Database Lockouts . | . . . . . . . . . . . . Manual 19 | . . . 5 . . . 2 5 4 3 . Terminals 72 | . 6 . 15 5 1 . 4 20 7 . 14 Fabricators . | . . . . . . . . . . . . Repair Stations . | . . . . . . . . . . . . Recycling Units 1 | . . . . . . . . 1 . . . Scanalyzers . | . . . . . . . . . . . . Garrison Access 1 | . . . 1 . . . . . . . . Terminal Hacks 56 | . 1 . 7 3 1 . 1 9 1 25 8 Record 35 | . . . 2 . . . 1 3 1 25 3 Part Schematic 1 | . . . . . . . . 1 . . . Robot Schematic 1 | . . . . . . . . . . . 1 Robot Analysis 1 | . . . 1 . . . . . . . . Open Door 4 | . . . . . . . . 4 . . . Open DSF 1 | . . . . . 1 . . . . . . Emergency Access Points 2 | . . . . 1 . . . . . . 1 Alert Level 1 | . . . . . . . . . . . 1 Locate Traps 4 | . . . 2 . . . . . . . 2 Recall Investigation 1 | . . . 1 . . . . . . . . Recall Reinforcements 1 | . . . 1 . . . . . . . . Zone Layout 2 | . 1 . . . . . . 1 . . . Garrison Registry 1 | . . . . 1 . . . . . . . Security Stations 1 | . . . . 1 . . . . . . . Fabricator Hacks . | . . . . . . . . . . . . Repair Station Hacks . | . . . . . . . . . . . . Recycling Unit Hacks 1 | . . . . . . . . 1 . . . Report Inventory 1 | . . . . . . . . 1 . . . Scanalyzer . | . . . . . . . . . . . . Garrison Access Hacks 1 | . . . 1 . . . . . . . . Unlock Access 1 | . . . 1 . . . . . . . . Unauthorized Hacks . | . . . . . . . . . . . . Terminals . | . . . . . . . . . . . . Fabricators . | . . . . . . . . . . . . Repair Stations . | . . . . . . . . . . . . Recycling Units . | . . . . . . . . . . . . Scanalyzers . | . . . . . . . . . . . . Garrison Access . | . . . . . . . . . . . . Data Cores Recovered . | . . . . . . . . . . . . Used . | . . . . . . . . . . . . Hacking Detections 25 | . 2 . 6 3 . . 2 6 3 . 3 Full Trace Events 8 | . 1 . 2 1 . . 2 . 2 . . Feedback Events . | . . . . . . . . . . . . Feedback Blocked . | . . . . . . . . . . . . Robot Schematics Acquired 1 | . . . . . . . . . . . 1 Robots Built . | . . . . . . . . . . . . Authchips . | . . . . . . . . . . . . Time . | . . . . . . . . . . . . Total Robot Build Rating . | . . . . . . . . . . . . Part Schematics Acquired 1 | . . . . . . . . 1 . . . Parts Built . | . . . . . . . . . . . . Authchips . | . . . . . . . . . . . . Time . | . . . . . . . . . . . . Total Part Build Rating . | . . . . . . . . . . . . Parts Repaired . | . . . . . . . . . . . . Time . | . . . . . . . . . . . . Parts Recycled . | . . . . . . . . . . . . Recycled Matter . | . . . . . . . . . . . . Retrieved Matter . | . . . . . . . . . . . . Retrieved Components . | . . . . . . . . . . . . Parts Scanalyzed . | . . . . . . . . . . . . Part Schematics Acquired . | . . . . . . . . . . . . Parts Damaged . | . . . . . . . . . . . . Bothacking | -11 -10 -10 -8 -8 -7 -7 -6 -6 -6 -6 -5 ------------ Run | Yrd Mat Sub Mat Gar Fac DSF Fac Ext Cet Arc Fac Used RIF Installer 1 | . . . . 1 . . . . . . . Robots Hacked . | . . . . . . . . . . . . Non-combat . | . . . . . . . . . . . . Combat . | . . . . . . . . . . . . Robot Hacks Applied . | . . . . . . . . . . . . Relay Couplers Released . | . . . . . . . . . . . . Fabnet Peak Effective % . | . . . . . . . . . . . . Robots Rewired 10 | . . . . . . . . 10 . . . Allies Hacked . | . . . . . . . . . . . . Hacks Repelled . | . . . . . . . . . . . . Allies | -11 -10 -10 -8 -8 -7 -7 -6 -6 -6 -6 -5 -------- Run | Yrd Mat Sub Mat Gar Fac DSF Fac Ext Cet Arc Fac Total Allies 14 | . . . . . . . . 14 . . . Largest Group 4 | . . . . . . . . 4 4 . . Highest-Rated Group 249 | . . . . . . . . 249 132 . . Highest-Rated Ally 159 | . . . . . . . . 159 39 . . Total Orders 15 | . . . . . . . . 15 . . . STAY 1 | . . . . . . . . 1 . . . ROAM 1 | . . . . . . . . 1 . . . FOLLOW 2 | . . . . . . . . 2 . . . AID 2 | . . . . . . . . 2 . . . EXPLORE 4 | . . . . . . . . 4 . . . RETURN 5 | . . . . . . . . 5 . . . Ally Attacks 94 | . . . . . . . . 52 42 . . Total Damage 2197 | . . . . . . . . 1380 817 . . Kills 19 | . . . . . . . . 13 6 . . Allies Corrupted . | . . . . . . . . . . . . Allies Melted 1 | . . . . . . . . 1 . . . Intel | -11 -10 -10 -8 -8 -7 -7 -6 -6 -6 -6 -5 ------- Run | Yrd Mat Sub Mat Gar Fac DSF Fac Ext Cet Arc Fac Robot Analysis Total 1 | . . . 1 . . . . . . . . Derelict Logs Recovered . | . . . . . . . . . . . . Drone Launches 8 | . . . . . . . . 8 . . . Drone Recoveries 5 | . . . . . . . . 5 . . . Exploration | -11 -10 -10 -8 -8 -7 -7 -6 -6 -6 -6 -5 ------------- Run | Yrd Mat Sub Mat Gar Fac DSF Fac Ext Cet Arc Fac Turns Passed 4962 | 84 786 244 500 86 5 100 112 1295 434 315 1001 Spaces Moved 4065 | 58 608 102 459 247 15 142 235 1002 255 210 732 Core 108 | 5 7 . 3 . . . . 7 . . 86 Treads 15 | . . . 15 . . . . . . . . Legs 2038 | . 547 102 61 . . . . 329 255 210 534 Wheels 231 | 53 54 . 124 . . . . . . . . Hover 356 | . . . . . . . . 244 . . 112 Flight 1317 | . . . 256 247 15 142 235 422 . . . Fastest Speed 25 | 50 90 120 28 31 31 31 25 25 120 120 50 Average Speed 87 | 86 118 172 63 32 31 35 27 68 120 120 119 Slowest Speed 350 | 100 250 190 350 34 31 40 74 190 190 120 250 Overloaded Moves . | . . . . . . . . . . . . Propulsion Burnouts . | . . . . . . . . . . . . Robots Hopped 9 | . . . 7 . . . 2 . . . . Cave-ins Triggered . | . . . . . . . . . . . . Exploration Rate (%) 46 | 4 84 9 53 42 1 76 10 82 71 98 22 Regions Visited 11 Branch Regions 4 Pre-discovered Areas . | . . . . . . . . . . . . Known Exits Taken 2 | . . . 1 . 1 . . . . . . Unknown Exits Taken 7 | 1 1 1 . . . . 1 1 1 1 . Scrap Searched . | . . . . . . . . . . . . Spaces Dug . | . . . . . . . . . . . . Terrain Destroyed 82 | . . 23 . . . . . . 6 7 46 Melee . | . . . . . . . . . . . . Projectile 24 | . . . . . . . . . 6 7 11 AOE 58 | . . 23 . . . . . . . . 35 Terrain Rammed . | . . . . . . . . . . . . Walls Destroyed . | . . . . . . . . . . . . Machines Disabled . | . . . . . . . . . . . . Actions | -11 -10 -10 -8 -8 -7 -7 -6 -6 -6 -6 -5 --------- Run | Yrd Mat Sub Mat Gar Fac DSF Fac Ext Cet Arc Fac Total 5088 | 76 647 150 583 250 14 181 277 1540 324 240 806 Wait 488 | . 10 14 18 1 . 21 6 362 21 12 23 Move 4034 | 57 607 101 444 245 14 141 230 1000 254 209 732 Hop 9 | . . . 7 . . . 2 . . . . Pick Up 37 | 3 7 . 6 1 . 3 5 11 1 . . Fast Attach 81 | 8 1 3 22 . . 1 4 13 10 2 17 Attach 27 | . 3 1 3 2 . 2 5 9 2 . . Detach 15 | 1 1 1 5 . . 1 2 3 . . 1 Swap 2 | . . . . . . . . 1 1 . . Drop 50 | 1 1 5 16 . . 2 2 9 7 2 5 Fire 223 | 6 16 21 58 1 . 10 3 45 28 15 20 Melee . | . . . . . . . . . . . . Ram 4 | . . . . . . . . . . . 4 Kick 8 | . 1 1 . . . . . 2 . . 4 Crush 4 | . . . 4 . . . . . . . . Escape Stasis 37 | . . . . . . . 18 19 . . . Rewire 66 | . . . . . . . . 66 . . . Trap . | . . . . . . . . . . . . Miscellaneous 3 | . . 3 . . . . . . . . . Route ------- -11/Scrapyard -10/Materials (discovered 6 exits: [*Mat x3] / [*Min x2] / [*Sub]) -10/Subcaves -8/Materials -8/Garrison (discovered 3 exits: *Fac x3) -7/Factory -7/DSF -6/Factory -6/Extension (discovered 2 exits: *Fac / *Cet) -6/Cetus -6/Archives (discovered 3 exits: *Fac / [*Hub x2]) -5/Factory History --------- Turn | Location | Event 2 | -11/Scrapyard | Discovered new exit (range 16) 85 | -11/Scrapyard | Entered Materials 192 | -10/Materials | Met 8R-AWN 207 | -10/Materials | Lost 3 parts (2n1w) 300 | -10/Materials | Build established: Mutant 380 | -10/Materials | Discovered new exit (range 13) 539 | -10/Materials | Discovered new exit (range 16) 657 | -10/Materials | Discovered new exit (range 13) 710 | -10/Materials | Discovered new exit (range 15) 859 | -10/Materials | Discovered new exit (range 15) 863 | -10/Materials | Discovered new exit (range 6) 871 | -10/Materials | Entered Subcaves 873 | -10/Subcaves | A swath of the cavern ceiling suddenly collapsed 1000 | -10/Subcaves | Ambushed by swarm of Subdwellers 1013 | -10/Subcaves | Ambushed by Subdwellers from Twisted Machinery 1042 | -10/Subcaves | Lost 3 allies 1083 | -10/Subcaves | Ambushed by Subdweller buried in earth 1092 | -10/Subcaves | Core integrity fell below 50% 1100 | -10/Subcaves | Discovered new exit (range 11) 1115 | -10/Subcaves | Entered Materials 1115 | -8/Materials | Evolved 4 slots: Propulsion x3, Utility x1 1118 | -8/Materials | Lost 3 parts (1p1u1w) 1465 | -8/Materials | Destroyed 7 combat bots 1614 | -8/Materials | Identified exit to Garrison 1615 | -8/Materials | Entered Garrison 1622 | -8/Garrison | Learned Factory security intel 1629 | -8/Garrison | Installed Relay Interface Framework 1634 | -8/Garrison | Lost 5 parts (1p2n1u1w) 1656 | -8/Garrison | Discovered new exit (range 73) 1656 | -8/Garrison | Discovered new exit (range 33) 1656 | -8/Garrison | Discovered new exit (range 61) 1661 | -8/Garrison | Triggered checkpoint 1677 | -8/Garrison | Triggered checkpoint 1701 | -8/Garrison | Entered Factory 1701 | -7/Factory | Evolved 2 slots: Power x1, Utility x1 1706 | -7/Factory | Identified exit to DSF 1706 | -7/Factory | Entered DSF 1731 | -7/DSF | Additional patrols routed to DSF 1761 | -7/DSF | Lost 4 parts (2n1u1w) 1802 | -7/DSF | Discovered new exit (range 11) 1806 | -7/DSF | Entered Factory 1806 | -6/Factory | Evolved 2 slots: Utility x1, Weapon x1 1893 | -6/Factory | Discovered new exit (range 21) 1918 | -6/Factory | Entered Extension 1949 | -6/Extension | Spotted B-75 Beast 2055 | -6/Extension | Rescued A7 2152 | -6/Extension | Rescued a captive Derelict 2444 | -6/Extension | Spotted B-75 Beast 2466 | -6/Extension | Rescued a captive Derelict 2490 | -6/Extension | Rescued a captive Derelict 2589 | -6/Extension | Core integrity fell below 50% 2610 | -6/Extension | Lost 4 parts (1n1u2w) 2687 | -6/Extension | Lost 3 parts (1n1u1w) 2695 | -6/Extension | Lost 4 allies 3145 | -6/Extension | Build established: Scavenger-Tank 3148 | -6/Extension | Discovered new exit (range 10) 3150 | -6/Extension | Discovered new exit (range 6) 3213 | -6/Extension | Entered Cetus 3213 | -6/Cetus | Accompanied by 4 allies 3233 | -6/Cetus | Spotted Cetus Guard 3233 | -6/Cetus | Spotted Cetus Guard 3233 | -6/Cetus | Spotted Cetus Guard 3233 | -6/Cetus | Spotted Cetus Guard 3261 | -6/Cetus | Allies destroyed Cetus Guard 3263 | -6/Cetus | Allies destroyed Cetus Guard 3266 | -6/Cetus | Destroyed Cetus Guard 3277 | -6/Cetus | Allies destroyed Cetus Guard 3299 | -6/Cetus | Lost 3 allies 3305 | -6/Cetus | Lost 4 parts (1p1n2w) 3453 | -6/Cetus | Discovered new exit (range 21) 3623 | -6/Cetus | Spotted Cetus Guard 3623 | -6/Cetus | Spotted Cetus Guard 3623 | -6/Cetus | Spotted Cetus Guard 3623 | -6/Cetus | Spotted Cetus Guard 3647 | -6/Cetus | Entered Archives 3757 | -6/Archives | Discovered new exit (range 17) 3769 | -6/Archives | Unable to access archive contents 3774 | -6/Archives | Discovered new exit (range 17) 3782 | -6/Archives | Unable to access archive contents 3787 | -6/Archives | Discovered new exit (range 15) 3794 | -6/Archives | Unable to access archive contents 3962 | -6/Archives | Entered Factory 3962 | -5/Factory | Evolved 2 slots: Utility x1, Weapon x1 4540 | -5/Factory | System corruption reached 10% 4582 | -5/Factory | Lost 3 parts (2n1u) 4673 | -5/Factory | Lost 6 parts (1p1n1u3w) 4825 | -5/Factory | Lost 9 parts (1p2n3u3w) 4826 | -5/Factory | Core integrity fell below 50% 4936 | -5/Factory | Core integrity fell below 20% 4954 | -5/Factory | Build established: Mutant 4963 | -5/Factory | Destroyed by G-50 Soldier with Heavy Laser Last Messages --------------- Map updated. ALERT: Cargo convoy en route, clear transfer corridor. System corrupted: Component data lost. System corrupted: Matter fused (-5). Acquired Prototype Storage. Identified Imp. Matter Compressor. Dropped Imp. Matter Compressor. System corrupted: Gyrokinetic Inverter rejected. Penetrated by Slug. Acquired Gyrokinetic Inverter. Gyrokinetic Inverter destroyed. Angular Momentum Engine destroyed. Slammed into R-10 Processor. Destabilizing: Core damaged (-10). Slammed into R-10 Processor. System corrupted: Energy discharge (-22). Slammed into A-15 Conveyor. ALERT: Rogue bot located, Programmers report to Factory Zone 8B. Map ----- +----------------------------------------------------+ | ?????????????????????????????????????????????????? | | ?????????????????????????????????????????????????? | | ?????????????????????????????????????????????????? | | ?????????????????????????????????????????????????? | | ?????????????????????????????????????????????????? | | ?????????????????????????????????????????????????? | | ??????????????????????######?????????????????????? | | ?????????????????????? !?????????????????????? | | ?????????????????????? #????????????????????? | | ?????????????????????""" #????????????????##### | | ?????????????????""??""" #????????????????# | | ?????????????????"""?""" #????????????????# | | ??????????????#?? #????????????????# | | ??????????????# """ """ #????????????????# | | ??????????????# """ """ ###??????????????##### | | ??????????????? """ """ ??????????????????# | | ???????????????? #??????????????????# | | ???????????????? """ #??????????????????# | | ??????????????# """ !!! ###########????????# | | ??????????????# """ !!! #[ ????????# | | ??????????????# !! gg# ?????????# | | ??????????????# # """ ""???????????# | | ?????????????????? # """ ?????????????# | | ????????????????########## # ""???????????????# | | ????????????????# ! # #+########?????????# | | ????????????????# """ @ t k g #?????????# | | ????????????????# """ # gg ########### | | ????????????????# """ ! !# g g g gg | | ????????????????# ?## ###+################ | | ????????????????########### # * #?????????# | | ???????????????????# + + "" #?????????# | | ???????????????????# # # " """ #?????????# | | ???????????????????# # #??F """ #?????????# | | ???????????????????# !! + #????""" #?????????# | | ???????????????????# !! # #??????" #?????????# | | ???????????????????# # #??????????????????# | | ???????????????????# # #??????????????????# | | ???????????????????# * # #??????????????????# | | ???????????????????# # #??????????????????# | | ???????????????????# # #??????????????????# | | ???????????????????# # #??????????????????# | | ???????????????????# # #??????????????????# | | ???????????????????# + #??????????????????# | | ???????????????????##########??????????????????# | | ???????????????????????????????????????????????/ | | ???????????????????????????????????????????????# | | ???????????????????????????????????????????????? | | ???????????????????????????????????????????????? | | ???????????????????????????????????????????????? | | ?????????????????????????????????????????????????? | +----------------------------------------------------+ Best States ------------- Heat Dissipation 67 Energy Generation 39 Energy Capacity 365 Matter Stores 300 Matter Capacity 600 Sight Range 22 Terrain Scan Range 24 Terrain Scan Density 110 ECM Strength 1 Armor Coverage 800 Core Shielding 30 Propulsion Shielding 33 Evasion (%) 73 Recoil Reduction 2 Authchip Count 1 Item Schematics ----------------- Fusion Compressor | -6/Extension | Hacked Robot Schematics ------------------ A-02 Transporter | -5/Factory | Hacked Fabricated ------------ Nothing Alien Tech Used ----------------- None Achievements -------------- A New Friend Backstab Can't Catch Me GoHome() Please Form A Line Prison Break Challenges ------------ None Game ------ Seed ReflectiveHypervelocityLance Manual? 0 Play Time 02:08:13 Cumulative 7.7 hours Start 2024.08.02 @ 17:19:54 End 2024.08.02 @ 22:37:02 Sessions 1 Manual Loads 0 Difficulty Rogue Special Mode None Game No. 5 Rogue 5 Adventurer 0 Explorer 0 Win Type - Total 0 Types 0/0/0/0/0/0/0/0/0 Lore% 7 Gallery% 11 Achievement% 13 Wizard Run 0 Options --------- Layout 1 ASCII 0 Keyboard 1 Movement Numpad Keybinds 1 Fullscreen 1 Font 24/Smallcaps Map View 50x35 Zoom Use 0% Tactical HUD 0 Map Filters NONE Filters NONE Steam 0 RUN: 593a71e8-d21b-42ba-a6db-f5221a18ea4b